bitfinex-derivatives/quotes_SOLF0:USTF0_20241027
["timestamp","ask_amount","ask_price","bid_price","bid_amount"]
[1730039324827,7.1124,176.73,176.7,2.8328]
[1730039325026,2.8324,176.73,176.7,2.8328]
[1730039325328,7.1124,176.73,176.7,2.8328]
[1730039330028,2.8324,176.73,176.7,2.8328]
[1730039330537,2.8323,176.74,176.71,2.8327]
[1730039337643,2.8324,176.73,176.7,2.8328]
[1730039338342,2.8323,176.74,176.71,2.8327]
[1730039341037,2.8328,176.71,176.68,2.8332]
[1730039341237,7.1128,176.71,176.68,2.8332]
[1730039344247,2.8331,176.69,176.66,7.75599163]
[1730039344444,4.28,176.71,176.63,1.1541]
[1730039344751,4.28,176.71,176.6,2.3969]
[1730039345063,2.8333,176.68,176.61,4.92435782]
[1730039345241,2.8333,176.68,176.62,4.92435782]
[1730039345546,2.8333,176.68,176.6,2.3969]
[1730039345547,4.28,176.67,176.64,2.8337]
[1730039346742,7.1134,176.67,176.64,2.8337]
[1730039349751,7.1134,176.67,176.64,2.8338]
[1730039350145,7.1134,176.67,176.62,4.92867831]
[1730039350447,7.1134,176.67,176.6,2.3969]
[1730039350750,7.1134,176.67,176.61,4.92923294]
[1730039350947,7.1134,176.67,176.62,4.92923294]
[1730039351141,7.1134,176.67,176.62,2.8341]
[1730039351347,7.1134,176.67,176.6,2.3969]
[1730039351348,7.1134,176.67,176.63,4.92970429]
[1730039351549,7.1134,176.67,176.6,2.3969]
[1730039351750,7.1134,176.67,176.61,4.92974851]
[1730039351949,7.1134,176.67,176.62,4.92974851]
[1730039352151,7.1134,176.67,176.63,4.92974851]
[1730039352351,7.1134,176.67,176.64,2.8337]
[1730039352952,7.1134,176.67,176.6,2.3969]
[1730039353149,7.1134,176.67,176.65,2.8337]
[1730039353751,4.28,176.67,176.6,2.3969]
[1730039353952,2.8338,176.65,176.63,2.8339]
[1730039354552,2.8335,176.66,176.63,2.8339]
[1730039359158,4.28,176.67,176.6,2.3969]
[1730039359356,4.28,176.67,176.66,2.8335]
[1730039359656,2.8331,176.69,176.6,2.3969]
[1730039359657,4.28,176.69,176.62,4.93157221]
[1730039359861,2.8326,176.72,176.69,2.833]
[1730039360158,4.28,176.71,176.64,4.93157221]
[1730039360454,7.1128,176.71,176.66,2.8334]
[1730039360660,7.1128,176.71,176.61,4.28]
[1730039360858,7.1128,176.71,176.62,4.92971482]
[1730039361161,7.1128,176.71,176.67,2.8332]
[1730039362157,7.1128,176.71,176.61,4.28]
[1730039362459,7.1128,176.71,176.62,4.93012864]
[1730039362661,7.1128,176.71,176.67,2.8332]
[1730039363255,2.8332,176.68,176.64,2.8337]
[1730039363461,4.28,176.71,176.65,4.93074254]
[1730039363662,4.28,176.71,176.6,2.3969]
[1730039363863,4.28,176.71,176.64,2.8337]
[1730039363864,2.8332,176.68,176.64,2.8337]
[1730039364063,4.28,176.67,176.6,2.3969]
[1730039364661,4.28,176.67,176.64,2.8337]
[1730039365470,2.8335,176.66,176.63,2.8339]
[1730039366557,4.28,176.67,176.57,5.4999]
[1730039366760,4.28,176.67,176.58,4.93241102]
[1730039367057,2.8337,176.65,176.61,2.8342]
[1730039367576,4.28,176.67,176.57,5.4999]
[1730039367786,4.28,176.67,176.6,2.8343]
[1730039367787,2.8338,176.64,176.6,2.8343]
[1730039367971,2.8338,176.64,176.58,4.93257584]
[1730039368281,2.8338,176.64,176.57,5.4999]
[1730039368282,2.8338,176.64,176.61,4.93257584]
[1730039368467,2.8338,176.64,176.57,1.2199]
[1730039368671,2.8338,176.64,176.58,4.93163064]
[1730039368870,2.8338,176.64,176.59,4.93163064]
[1730039369078,2.8338,176.64,176.6,4.93163064]
[1730039369275,2.8338,176.64,176.61,7.76583064]
[1730039369477,2.8338,176.64,176.61,2.8342]
[1730039369975,2.8337,176.65,176.6,2.8344]
[1730039370278,2.8337,176.65,176.61,4.93118424]
[1730039370677,2.8337,176.65,176.61,2.8342]
[1730039371072,4.28,176.67,176.64,2.8337]
[1730039371672,2.77932201,176.73,176.64,2.8337]
[1730039371876,4.28,176.72,176.64,2.8337]
[1730039372082,7.04974779,176.72,176.64,2.8337]
[1730039372268,2.8334,176.67,176.64,2.8337]
[1730039372475,7.1134,176.67,176.64,2.8337]
[1730039374773,7.1133,176.67,176.64,2.8337]
[1730039377079,7.1134,176.67,176.64,2.8337]
[1730039380087,2.8328,176.71,176.63,2.8339]
[1730039380275,7.1128,176.71,176.64,6.14598677]
[1730039380480,7.1128,176.71,176.65,4.92008677]
[1730039380786,7.1128,176.71,176.68,2.8331]
[1730039390488,4.28,176.71,176.64,1.2259]
[1730039390686,4.28,176.71,176.65,4.92125912]
[1730039390890,4.28,176.71,176.66,4.92125912]
[1730039391085,7.1127,176.71,176.68,2.833]
[1730039391882,7.1127,176.71,176.66,4.92165868]
[1730039391883,4.28,176.71,176.66,4.92165868]
[1730039392081,4.28,176.71,176.64,1.2259]
[1730039392287,4.28,176.71,176.65,4.92189117]
[1730039392486,4.28,176.71,176.66,4.92189117]
[1730039392688,2.833,176.7,176.64,1.2259]
[1730039392887,2.833,176.7,176.65,4.92238626]
[1730039393086,2.833,176.7,176.64,1.2259]
[1730039393286,2.833,176.7,176.65,4.92197619]
[1730039393489,2.833,176.7,176.66,4.92197619]
[1730039393690,2.833,176.7,176.64,1.2259]
[1730039393890,2.833,176.7,176.65,4.92223981]
[1730039394093,2.833,176.7,176.68,2.8331]
[1730039394691,4.28,176.71,176.64,1.2259]
[1730039394887,2.8329,176.7,176.65,4.92264371]
[1730039395193,2.8329,176.7,176.64,1.2259]
[1730039395393,2.8329,176.7,176.65,4.92352624]
[1730039395595,2.8329,176.7,176.64,1.2259]
[1730039395791,2.8329,176.7,176.65,4.92340475]
[1730039395992,2.8329,176.7,176.64,1.2259]
[1730039396192,2.8329,176.7,176.65,4.92332105]
[1730039396394,2.8329,176.7,176.68,2.8331]
[1730039397489,7.1128,176.71,176.68,2.8331]
[1730039400103,4.28,176.71,176.64,1.2259]
[1730039400288,4.28,176.71,176.63,2.8339]
[1730039400486,4.28,176.71,176.58,6.8142]
[1730039400487,4.28,176.71,176.58,8.0031]
[1730039400798,4.28,176.71,176.7,2.8329]
[1730039401297,4.28,176.71,176.62,9.20551306]
[1730039401298,4.28,176.71,176.62,4.28]
[1730039401500,4.28,176.72,176.63,4.92347172]
[1730039401798,4.28,176.72,176.64,8.59527172]
[1730039402005,4.28,176.72,176.65,4.92347172]
[1730039402188,4.28,176.72,176.66,4.92347172]
[1730039402388,122.58908875,176.76,176.67,4.92347172]
[1730039402591,122.58908875,176.76,176.68,4.92347172]
[1730039402796,122.58908875,176.76,176.69,4.92347172]
[1730039402995,122.58908875,176.76,176.7,6.11237172]
[1730039403194,122.58908875,176.76,176.73,2.832]
[1730039403394,122.58908875,176.76,176.7,1.1889]
[1730039403594,122.58908875,176.76,176.71,4.91935183]
[1730039403796,122.58908875,176.76,176.73,2.832]
[1730039404496,122.58908875,176.76,176.74,2.8318]
[1730039404695,2.8316,176.77,176.74,2.8318]
[1730039406700,4.28,176.78,176.74,2.8318]
[1730039407005,4.28,176.78,176.76,2.8315]
[1730039407197,4.26,176.81,176.72,1.1638]
[1730039407401,4.26,176.81,176.73,4.92526772]
[1730039407402,2.831,176.8,176.73,4.92526772]
[1730039407603,2.831,176.8,176.76,2.8315]
[1730039410002,4.0385,176.83,176.72,5.4238]
[1730039410199,5.6577,176.94,176.73,1.41612462]
[1730039410398,2.4209,176.89,176.74,6.33257895]
[1730039410600,2.4209,176.89,176.78,2.8312]
[1730039410601,2.8308,176.82,176.78,2.8312]
[1730039410801,2.8308,176.82,176.73,4.91615835]
[1730039410998,123.21144594,176.88,176.74,6.33224174]
[1730039411203,2.8305,176.83,176.75,1.41605145]
[1730039411398,4.26,176.87,176.73,4.91376208]
[1730039411593,4.26,176.87,176.74,6.32980405]
[1730039411797,4.26,176.87,176.72,5.4238]
[1730039411798,4.26,176.87,176.75,1.41604197]
[1730039412106,4.26,176.87,176.73,9.1721791]
[1730039412608,4.26,176.87,176.72,1.1638]
[1730039413304,2.8313,176.79,176.75,2.8317]
[1730039413508,7.0913,176.79,176.75,2.8317]
[1730039414309,2.8313,176.79,176.75,2.8317]
[1730039414603,2.8314,176.78,176.74,2.8319]
[1730039415008,4.26,176.79,176.72,1.1638]
[1730039415201,2.8316,176.77,176.73,2.832]
[1730039415602,4.26,176.79,176.7,1.1889]
[1730039415808,2.8318,176.75,176.72,2.8322]
[1730039416020,2.8318,176.75,176.7,1.1889]
[1730039416207,2.8318,176.75,176.71,4.24851917]
[1730039416405,2.8318,176.75,176.71,2.8323]
[1730039417209,4.26,176.75,176.69,2.8326]
[1730039418004,2.8322,176.73,176.69,4.24899023]
[1730039418209,2.8322,176.73,176.69,2.8326]
[1730039418409,2.8322,176.73,176.67,4.91160757]
[1730039418609,2.8322,176.73,176.69,2.8326]
[1730039419808,2.8325,176.71,176.68,1.41642819]
[1730039420210,4.26,176.75,176.68,1.41642819]
[1730039420407,2.8325,176.71,176.68,1.41642819]
[1730039421512,2.8325,176.71,176.68,4.24932819]
[1730039421706,2.8325,176.71,176.68,2.8329]
[1730039421906,2.8325,176.71,176.68,4.24932819]
[1730039422106,2.8321,176.73,176.69,2.8327]
[1730039422311,2.8321,176.73,176.68,1.41642819]
[1730039422515,4.26,176.75,176.67,4.91160757]
[1730039422712,4.26,176.75,176.66,4.91160757]
[1730039422913,4.26,176.75,176.67,6.3280941]
[1730039423219,4.26,176.75,176.66,4.91160757]
[1730039423400,4.26,176.75,176.67,6.32808801]
[1730039423606,4.26,176.75,176.67,4.91160757]
[1730039423811,2.8323,176.72,176.68,1.41648044]
[1730039424016,2.8323,176.72,176.67,6.32808801]
[1730039424315,2.8323,176.72,176.68,1.41648044]
[1730039424617,2.8323,176.72,176.68,2.8328]
[1730039424818,2.8323,176.72,176.68,4.24928044]
[1730039425114,2.8323,176.72,176.68,2.8328]
[1730039425614,2.8324,176.71,176.68,2.8328]
[1730039426113,4.26,176.75,176.67,4.91160757]
[1730039426417,4.26,176.75,176.66,1.41647435]
[1730039426608,1.1842,176.74,176.65,1.2]
[1730039426819,2.8325,176.71,176.67,2.833]
[1730039427009,7.0925,176.71,176.67,2.833]
[1730039427406,2.8326,176.7,176.67,2.833]
[1730039429415,7.0925,176.71,176.67,2.833]
[1730039431716,4.26,176.71,176.66,2.8331]
[1730039431916,4.26,176.71,176.65,1.2]
[1730039432114,4.26,176.71,176.66,1.41662382]
[1730039432309,7.0925,176.71,176.65,1.2]
[1730039432517,7.0925,176.71,176.66,1.41661249]
[1730039432713,7.0925,176.71,176.65,1.2]
[1730039433019,7.0925,176.71,176.68,2.8328]
[1730039433219,4.26,176.71,176.65,1.2]
[1730039433410,4.26,176.71,176.69,2.8326]
[1730039434212,7.0924,176.71,176.69,2.8326]
[1730039436623,4.26,176.71,176.69,2.8326]
[1730039437712,2.8323,176.72,176.69,2.8326]
[1730039445822,7.0922,176.73,176.69,2.8326]
[1730039446216,4.26,176.73,176.69,2.8326]
[1730039446621,2.8323,176.72,176.69,2.8326]
[1730039451725,4.26,176.73,176.66,7.75606514]
[1730039451929,5.5157,176.73,176.67,1.41670526]
[1730039452129,2.8327,176.7,176.66,2.8331]
[1730039452330,2.8327,176.7,176.67,1.4167062]
[1730039452532,2.8327,176.7,176.66,2.8331]
[1730039452732,2.8327,176.7,176.67,1.41671983]
[1730039453023,2.8327,176.7,176.67,2.8329]
[1730039453224,5.5157,176.73,176.62,4.26]
[1730039453425,2.8325,176.71,176.65,2.8333]
[1730039453636,2.8325,176.71,176.66,6.34010866]
[1730039453830,2.8325,176.71,176.67,1.41665874]
[1730039454027,2.8323,176.72,176.61,4.26]
[1730039454225,4.26,176.73,176.62,6.3397398]
[1730039454432,4.26,176.73,176.63,6.3397398]
[1730039454724,7.0922,176.73,176.7,2.8326]
[1730039455634,4.26,176.73,176.62,4.9228249]
[1730039455828,2.8323,176.72,176.69,2.8327]
[1730039459126,2.8317,176.76,176.72,2.8323]
[1730039459333,4.26,176.75,176.65,7.52147576]
[1730039459638,4.26,176.75,176.66,6.33887576]
[1730039459833,4.26,176.75,176.72,2.8321]
[1730039460032,7.0918,176.75,176.72,2.8321]
[1730039466939,2.8323,176.72,176.69,2.8326]
[1730039467135,2.8323,176.72,176.7,1.41645912]
[1730039467332,2.8324,176.71,176.68,2.8328]
[1730039467531,2.8324,176.71,176.69,6.33695111]
[1730039467737,2.8324,176.71,176.68,2.8328]
[1730039467937,2.8324,176.71,176.69,1.41650392]
[1730039468137,2.8322,176.73,176.68,2.8328]
[1730039468339,4.26,176.75,176.69,6.33780864]
[1730039468538,4.26,176.75,176.66,2.4471]
[1730039468740,2.8323,176.72,176.69,2.8327]
[1730039468944,4.26,176.71,176.69,2.8327]
[1730039469640,4.26,176.71,176.7,1.41650874]
[1730039469845,4.26,176.71,176.69,2.8327]
[1730039470045,4.26,176.71,176.7,1.41650293]
[1730039472239,4.26,176.71,176.69,2.8327]
[1730039472841,4.26,176.71,176.66,2.4471]
[1730039473147,7.0924,176.71,176.68,2.8328]
[1730039473343,7.0924,176.71,176.69,1.41658186]
[1730039473543,7.0924,176.71,176.68,2.8328]
[1730039473744,7.0924,176.71,176.69,1.41658059]
[1730039473945,7.0924,176.71,176.68,2.8328]
[1730039474140,7.0924,176.71,176.69,1.41658059]
[1730039474336,7.0924,176.71,176.68,2.8328]
[1730039474541,7.0924,176.71,176.69,1.41655139]
[1730039474848,7.0924,176.71,176.68,2.8328]
[1730039475037,7.0924,176.71,176.69,1.41658314]
[1730039475243,7.0924,176.71,176.68,2.8328]
[1730039475439,7.0924,176.71,176.69,1.41655876]
[1730039475642,7.0924,176.71,176.7,1.41653311]
[1730039475845,4.26,176.71,176.7,1.41653311]
[1730039476355,4.26,176.71,176.7,4.24913311]
[1730039476843,4.26,176.71,176.7,1.41653311]
[1730039477072,4.26,176.71,176.69,2.8327]
[1730039477238,4.26,176.71,176.7,1.4165317]
[1730039479053,4.26,176.71,176.67,2.8331]
[1730039479243,4.26,176.71,176.68,6.33884827]
[1730039479547,2.8327,176.7,176.69,1.41661458]
[1730039480249,4.26,176.71,176.53,55.04]
[1730039480448,2.8335,176.64,176.6,2.834]
[1730039480652,2.8335,176.64,176.61,4.92475664]
[1730039480856,4.26,176.65,176.62,4.92475664]
[1730039481058,4.26,176.65,176.63,2.8336]
[1730039481348,4.26,176.65,176.64,4.92475694]
[1730039481554,7.0934,176.65,176.64,4.92475694]
[1730039483846,4.26,176.65,176.6,2.8341]
[1730039484048,2.8337,176.63,176.61,4.92720727]
[1730039484355,2.8337,176.63,176.62,4.92720727]
[1730039484657,2.8337,176.64,176.62,4.92720727]
[1730039484847,2.8337,176.64,176.6,2.8341]
[1730039485042,2.8337,176.64,176.61,4.92655201]
[1730039485447,2.8337,176.63,176.62,4.92655201]
[1730039486451,2.8337,176.63,176.59,2.8343]
[1730039486660,2.8337,176.63,176.6,4.92450495]
[1730039486853,2.8337,176.63,176.61,4.92450495]
[1730039487061,2.8337,176.63,176.62,4.92404505]
[1730039487257,2.8337,176.63,176.59,2.8343]
[1730039487458,2.8337,176.63,176.6,4.92138032]
[1730039487759,2.8337,176.63,176.59,2.8343]
[1730039487760,2.8337,176.63,176.61,4.92138032]
[1730039487962,2.8337,176.63,176.59,2.8343]
[1730039488152,2.8337,176.63,176.6,4.92011249]
[1730039488357,2.8337,176.63,176.61,4.92011249]
[1730039488553,4.26,176.65,176.59,2.8343]
[1730039488750,4.26,176.65,176.6,4.91921144]
[1730039488751,2.834,176.61,176.6,4.91921144]
[1730039488971,4.26,176.66,176.6,4.91921144]
[1730039489265,4.26,176.66,176.61,4.91937227]
[1730039489462,4.26,176.66,176.59,2.8343]
[1730039489765,4.26,176.66,176.6,4.91903725]
[1730039489962,2.834,176.62,176.58,2.8344]
[1730039490158,7.094,176.62,176.59,4.91844766]
[1730039490461,7.094,176.62,176.6,4.91844766]
[1730039490659,7.094,176.62,176.58,2.8345]
[1730039490855,7.094,176.62,176.59,4.91758039]
[1730039491063,7.094,176.62,176.6,4.91758039]
[1730039491262,7.094,176.62,176.58,2.8345]
[1730039491463,7.094,176.62,176.59,4.91654359]
[1730039491762,2.834,176.61,176.57,2.8346]
[1730039492061,4.26,176.62,176.58,4.9171731]
[1730039492263,4.26,176.62,176.54,1.2293]
[1730039492463,2.8342,176.6,176.55,4.91664345]
[1730039492658,2.8342,176.6,176.56,4.91664345]
[1730039492859,2.8342,176.6,176.54,1.2293]
[1730039493065,4.26,176.62,176.56,2.8348]
[1730039493263,4.26,176.62,176.54,1.2293]
[1730039493454,4.26,176.62,176.48,2.4265]
[1730039493659,2.8348,176.57,176.53,2.8352]
[1730039493956,4.26,176.56,176.48,2.4265]
[1730039494158,4.26,176.56,176.51,2.8356]
[1730039494465,4.26,176.56,176.48,2.4265]
[1730039494466,4.26,176.56,176.48,1.2174]
[1730039494656,4.26,176.56,176.49,4.91677582]
[1730039494963,2.8354,176.53,176.5,4.91677582]
[1730039495162,4.26,176.52,176.43,4.26]
[1730039495364,7.0956,176.52,176.48,2.836]
[1730039495561,4.26,176.52,176.45,4.91424766]
[1730039495766,4.26,176.52,176.46,4.91424766]
[1730039496063,2.8356,176.51,176.47,4.91512697]
[1730039496262,2.8356,176.51,176.44,4.91512697]
[1730039496471,2.8356,176.51,176.45,4.91512697]
[1730039496658,7.0955,176.52,176.48,2.8361]
[1730039497956,121.10873178,176.57,176.44,4.91512697]
[1730039498165,121.10873178,176.57,176.45,5.957078]
[1730039498469,121.10873178,176.57,176.53,2.8352]
[1730039499961,121.10873178,176.57,176.49,1.2543]
[1730039500159,121.10873178,176.57,176.54,2.8351]
[1730039500663,121.10873178,176.57,176.49,1.2543]
[1730039500864,4.26,176.58,176.49,1.2543]
[1730039501261,4.26,176.58,176.55,2.8348]
[1730039502977,4.26,176.58,176.49,1.2543]
[1730039504476,2.8348,176.57,176.53,2.8352]
[1730039507373,2.835,176.56,176.52,2.8355]
[1730039507575,2.835,176.56,176.49,1.2543]
[1730039508279,2.8349,176.56,176.52,2.8354]
[1730039508478,4.26,176.58,176.49,1.2543]
[1730039509178,4.26,176.58,176.53,2.8352]
[1730039509974,2.8347,176.57,176.53,2.8352]
[1730039510576,4.26,176.58,176.49,1.2543]
[1730039510979,4.26,176.58,176.48,1.223]
[1730039511473,2.8353,176.54,176.5,2.8357]
[1730039511671,4.26,176.53,176.5,2.8357]
[1730039511890,4.26,176.52,176.5,2.8357]
[1730039512269,7.0955,176.52,176.49,2.8359]
[1730039512476,7.0955,176.52,176.45,4.88907667]
[1730039512477,4.26,176.52,176.45,4.88907667]
[1730039512980,7.0956,176.52,176.48,2.836]
[1730039513879,7.0956,176.52,176.49,2.8359]
[1730039514478,121.77638415,176.58,176.45,4.88907667]
[1730039514681,121.77638415,176.58,176.46,1.235]
[1730039514682,4.26,176.57,176.46,1.235]
[1730039515078,4.26,176.57,176.47,1.1732]
[1730039515278,2.835,176.55,176.47,1.1732]
[1730039515470,4.26,176.57,176.47,1.1732]
[1730039515471,4.26,176.57,176.48,1.2236]
[1730039516079,2.8349,176.56,176.53,2.8352]
[1730039516575,4.26,176.57,176.48,1.2236]
[1730039516781,4.26,176.57,176.56,2.8348]
[1730039517277,2.3796,176.7,176.5,4.26]
[1730039517482,4.26,176.69,176.5,4.26]
[1730039517885,2.8339,176.62,176.59,2.8342]
[1730039518783,7.0938,176.63,176.59,2.8342]
[1730039521093,2.8339,176.62,176.58,2.8344]
[1730039521592,2.8342,176.61,176.56,2.8347]
[1730039521979,2.8342,176.61,176.51,4.26]
[1730039522590,2.8342,176.6,176.51,4.26]
[1730039522886,1.0,176.68,176.48,1.2236]
[1730039522887,4.26,176.59,176.48,1.2236]
[1730039523083,4.26,176.59,176.49,4.26]
[1730039523287,2.835,176.55,176.52,2.8355]
[1730039523490,4.26,176.55,176.48,1.2236]
[1730039523883,2.8355,176.52,176.49,2.8359]
[1730039524684,2.8354,176.53,176.5,2.8357]
[1730039526496,4.26,176.55,176.31,16.79740901]
[1730039526695,4.26,176.55,176.43,6.6914]
[1730039527294,2.8356,176.52,176.49,2.8359]
[1730039528400,7.0957,176.51,176.48,2.8361]
[1730039528587,4.26,176.51,176.43,2.4314]
[1730039529093,2.8359,176.49,176.46,2.8363]
[1730039529297,4.26,176.51,176.43,2.4314]
[1730039529596,2.836,176.49,176.45,2.8365]
[1730039529796,2.836,176.49,176.43,2.4314]
[1730039530293,4.26,176.51,176.43,2.4314]
[1730039531088,2.8362,176.48,176.45,2.8366]
[1730039531487,4.26,176.51,176.43,2.4314]
[1730039531684,2.8364,176.47,176.43,2.8369]
[1730039531990,4.26,176.47,176.4,1.2575]
[1730039533318,4.26,176.47,176.46,2.8364]
[1730039533483,4.26,176.5,176.4,1.2575]
[1730039534288,4.26,176.5,176.46,2.8363]
[1730039534289,2.836,176.49,176.46,2.8363]
[1730039534895,4.26,176.5,176.46,2.8363]
[1730039535094,7.0958,176.5,176.46,2.8363]
[1730039536094,7.0958,176.5,176.4,1.2575]
[1730039536292,7.0958,176.5,176.46,2.8363]
[1730039536488,7.0958,176.5,176.4,1.2575]
[1730039537794,7.0958,176.5,176.46,2.8363]
[1730039537989,7.0958,176.5,176.4,1.2575]
[1730039537990,4.26,176.5,176.4,1.2575]
[1730039538193,7.0958,176.5,176.4,1.2575]
[1730039538391,7.0958,176.5,176.46,2.8363]
[1730039538594,2.836,176.49,176.4,1.2575]
[1730039538900,4.26,176.5,176.4,1.2575]
[1730039539102,4.26,176.5,176.45,2.8365]
[1730039540303,2.8362,176.48,176.45,2.8365]
[1730039542200,2.836,176.49,176.45,2.8365]
[1730039542507,4.26,176.5,176.47,2.8362]
[1730039542900,7.0959,176.5,176.46,2.8364]
[1730039544416,2.8361,176.48,176.4,1.2575]
[1730039544801,4.26,176.5,176.4,1.2575]
[1730039545101,2.8363,176.47,176.4,1.2575]
[1730039545407,2.8363,176.47,176.44,2.8366]
[1730039545611,2.8365,176.46,176.44,2.8366]
[1730039546404,4.26,176.5,176.44,2.8366]
[1730039546405,2.8363,176.47,176.44,2.8366]
[1730039546605,4.26,176.5,176.4,1.2575]
[1730039546906,4.26,176.5,176.42,2.8369]
[1730039547511,2.8361,176.49,176.44,2.8367]
[1730039547808,4.26,176.5,176.44,2.8367]
[1730039548005,4.26,176.5,176.4,1.2575]
[1730039548209,2.8362,176.48,176.45,2.8366]
[1730039548397,2.8362,176.48,176.4,1.2575]
[1730039548806,4.26,176.5,176.4,1.2575]
[1730039549002,2.8363,176.47,176.44,2.8367]
[1730039550710,2.8366,176.46,176.42,2.837]
[1730039550907,7.0966,176.46,176.42,2.837]
[1730039551209,7.0966,176.46,176.41,2.8371]
[1730039551398,7.0966,176.46,176.4,1.2575]
[1730039551910,4.26,176.46,176.4,1.2575]
[1730039552298,4.26,176.46,176.4,6.16502643]
[1730039552503,4.26,176.46,176.44,2.8366]
[1730039553002,3.7391,176.55,176.4,6.16502643]
[1730039553200,3.7391,176.55,176.48,2.836]
[1730039553201,2.8358,176.51,176.48,2.836]
[1730039553401,4.26,176.5,176.42,4.90752643]
[1730039553711,4.26,176.5,176.41,4.26]
[1730039553712,2.836,176.49,176.47,2.8361]
[1730039555300,4.26,176.5,176.47,2.8361]
[1730039555504,4.26,176.51,176.5,2.8357]
[1730039556308,2.8354,176.53,176.5,2.8357]
[1730039556508,122.74279832,176.56,176.45,4.26]
[1730039556709,127.00279832,176.56,176.46,10.34291265]
[1730039556910,127.00279832,176.56,176.47,7.33041265]
[1730039557109,127.00279832,176.56,176.48,4.91041265]
[1730039557306,127.00279832,176.56,176.49,4.91041265]
[1730039557510,127.00279832,176.56,176.47,2.42]
[1730039557511,127.00279832,176.56,176.5,4.91041265]
[1730039557710,127.00279832,176.56,176.48,4.91041265]
[1730039557909,127.00279832,176.56,176.49,4.91041265]
[1730039558120,129.83759832,176.56,176.53,2.8352]
[1730039558707,129.83759832,176.56,176.49,4.91041265]
[1730039558708,122.74279832,176.56,176.49,4.91041265]
[1730039558915,122.74279832,176.56,176.55,2.835]
[1730039564523,122.74279832,176.56,176.51,4.91473031]
[1730039564724,2.8351,176.55,176.52,4.91473031]
[1730039564927,122.74279832,176.56,176.49,4.91473031]
[1730039565129,127.00279832,176.56,176.5,4.91473031]
[1730039565324,129.83769832,176.56,176.53,2.8353]
[1730039567437,2.8352,176.54,176.51,2.8355]
[1730039569229,2.8352,176.54,176.48,4.91916993]
[1730039569429,2.8352,176.54,176.52,2.8354]
[1730039570928,2.8352,176.54,176.5,2.8356]
[1730039571130,4.26,176.56,176.49,4.91916355]
[1730039571330,4.26,176.56,176.47,2.42]
[1730039571529,2.8352,176.54,176.51,2.8356]
[1730039571937,4.26,176.56,176.49,4.92000494]
[1730039572135,2.8353,176.54,176.47,2.42]
[1730039572436,2.8353,176.54,176.48,4.92020989]
[1730039572737,2.8353,176.54,176.51,2.8356]
[1730039574434,2.8353,176.54,176.5,2.8357]
[1730039575244,4.26,176.53,176.5,2.8357]
[1730039575940,7.0954,176.53,176.49,2.8358]
[1730039576329,7.0954,176.53,176.46,1.1725]
[1730039576530,7.0954,176.53,176.5,2.8358]
[1730039578945,7.0954,176.53,176.46,1.1725]
[1730039579241,7.0954,176.53,176.5,2.8357]
[1730039579642,7.0749,176.56,176.48,4.92156832]
[1730039579843,4.24,176.56,176.46,1.1725]
[1730039580045,4.24,176.56,176.47,4.91993132]
[1730039580247,2.835,176.55,176.47,4.91993132]
[1730039580441,2.835,176.55,176.52,2.8353]
[1730039581243,2.8346,176.58,176.55,2.8349]
[1730039581438,126.96127236,176.59,176.48,9.15791498]
[1730039581742,129.79577236,176.59,176.56,2.8347]
[1730039581942,126.96127236,176.59,176.5,4.91791498]
[1730039582142,126.96127236,176.59,176.51,4.91791498]